bitfinex-derivatives/quotes_BTCF0:USTF0_20250322
["timestamp","ask_amount","ask_price","bid_price","bid_amount"]
[1742622891570,0.48110991,84348.0,84347.0,0.0365]
[1742622891772,0.84190991,84348.0,84347.0,0.0365]
[1742622893167,0.1186147,84347.0,84346.0,0.0101083]
[1742622893372,0.118619,84344.0,84343.0,0.01149679]
[1742622893571,0.1186218,84342.0,84341.0,0.11244]
[1742622893774,0.12018181,84342.0,84341.0,0.12392068]
[1742622893964,0.15058181,84342.0,84341.0,0.12392068]
[1742622894165,0.18188181,84342.0,84341.0,0.12392068]
[1742622894564,0.3004474,84342.0,84341.0,0.12392068]
[1742622895271,0.3004474,84342.0,84341.0,0.12792068]
[1742622896165,0.3004474,84342.0,84341.0,0.13092068]
[1742622896871,0.3004474,84342.0,84341.0,0.16122068]
[1742622897372,0.3004474,84342.0,84341.0,0.04878068]
[1742622900669,0.3004474,84342.0,84341.0,0.08148068]
[1742622901667,0.6612474,84342.0,84341.0,0.08148068]
[1742622903273,0.3004474,84342.0,84341.0,0.08148068]
[1742622903475,0.6612474,84342.0,84341.0,0.08148068]
[1742622904765,0.6612474,84342.0,84341.0,0.04878068]
[1742622907274,0.6612474,84342.0,84341.0,0.0373]
[1742622912581,0.6612474,84342.0,84341.0,0.0691]
[1742622916484,0.3004474,84342.0,84341.0,0.0691]
[1742622916782,0.6612474,84342.0,84341.0,0.0691]
[1742622917174,0.3004474,84342.0,84341.0,0.0691]
[1742622917674,0.6612474,84342.0,84341.0,0.0691]
[1742622918779,0.3004474,84342.0,84341.0,0.0691]
[1742622918986,0.6612474,84342.0,84341.0,0.0691]
[1742622919183,0.3004474,84342.0,84341.0,0.0691]
[1742622919383,0.6612474,84342.0,84341.0,0.0691]
[1742622920285,0.3004474,84342.0,84341.0,0.0691]
[1742622920477,0.6612474,84342.0,84341.0,0.0691]
[1742622920683,0.3004474,84342.0,84341.0,0.0691]
[1742622920985,0.6612474,84342.0,84341.0,0.0691]
[1742622922282,0.3004474,84342.0,84341.0,0.0691]
[1742622922483,0.6612474,84342.0,84341.0,0.0691]
[1742622924588,0.6613274,84342.0,84341.0,0.0691]
[1742622925987,0.6613274,84342.0,84341.0,0.0373]
[1742622926193,0.6613274,84342.0,84341.0,0.007]
[1742622927086,0.6613274,84342.0,84341.0,0.0374]
[1742622929793,0.3005274,84342.0,84341.0,0.0374]
[1742622929985,0.6613274,84342.0,84341.0,0.0374]
[1742622936287,0.6613274,84342.0,84341.0,0.007]
[1742622936687,0.6613274,84342.0,84341.0,0.0398]
[1742622940397,0.3005274,84342.0,84341.0,0.0398]
[1742622940593,0.6613274,84342.0,84341.0,0.0398]
[1742622941190,0.3005274,84342.0,84341.0,0.0398]
[1742622941394,0.6613274,84342.0,84341.0,0.0398]
[1742622943599,0.6613274,84342.0,84341.0,0.0705]
[1742622945399,0.3005274,84342.0,84341.0,0.0705]
[1742622945606,0.6613274,84342.0,84341.0,0.0705]
[1742622946809,0.3005274,84342.0,84341.0,0.0705]
[1742622946999,0.6613274,84342.0,84341.0,0.0705]
[1742622947307,0.3005274,84342.0,84341.0,0.0705]
[1742622947503,0.6613274,84342.0,84341.0,0.0705]
[1742622948310,0.3005274,84342.0,84341.0,0.0705]
[1742622948498,0.6613274,84342.0,84341.0,0.0705]
[1742622948898,0.3005274,84342.0,84341.0,0.0705]
[1742622949099,0.6613274,84342.0,84341.0,0.0705]
[1742622949409,0.3005274,84342.0,84341.0,0.0705]
[1742622949709,0.6613274,84342.0,84341.0,0.0705]
[1742622949908,0.3005274,84342.0,84341.0,0.0705]
[1742622950209,0.6613274,84342.0,84341.0,0.0705]
[1742622950399,0.3005274,84342.0,84341.0,0.0705]
[1742622950596,0.6613274,84342.0,84341.0,0.0705]
[1742622951402,0.3005274,84342.0,84341.0,0.0705]
[1742622951605,0.6613274,84342.0,84341.0,0.0705]
[1742622952909,0.3005274,84342.0,84341.0,0.0705]
[1742622953110,0.6613274,84342.0,84341.0,0.0705]
[1742622953308,0.3005274,84342.0,84341.0,0.0705]
[1742622953510,0.6613274,84342.0,84341.0,0.0705]
[1742622953809,0.3005274,84342.0,84341.0,0.0705]
[1742622954013,0.6613274,84342.0,84341.0,0.0705]
[1742622955211,0.3005274,84342.0,84341.0,0.0705]
[1742622955406,0.6613274,84342.0,84341.0,0.0705]
[1742622955608,0.6612474,84342.0,84341.0,0.0705]
[1742622956114,0.3004474,84342.0,84341.0,0.0705]
[1742622956297,0.6612474,84342.0,84341.0,0.0705]
[1742622957409,0.3004474,84342.0,84341.0,0.0705]
[1742622957603,0.6612474,84342.0,84341.0,0.0705]
[1742622961205,0.3004474,84342.0,84341.0,0.0705]
[1742622961414,0.6612474,84342.0,84341.0,0.0705]
[1742622962410,0.3004474,84342.0,84341.0,0.0705]
[1742622962598,0.6612474,84342.0,84341.0,0.0398]
[1742622962803,0.3004474,84342.0,84341.0,0.0398]
[1742622963003,0.6612474,84342.0,84341.0,0.0398]
[1742622965606,0.3004474,84342.0,84341.0,0.0398]
[1742622965911,0.6612474,84342.0,84341.0,0.0398]
[1742622966611,0.3004474,84342.0,84341.0,0.0398]
[1742622966804,0.6612474,84342.0,84341.0,0.0398]
[1742622967912,0.3004474,84342.0,84341.0,0.0398]
[1742622968309,0.6612474,84342.0,84341.0,0.0398]
[1742622971906,0.3004474,84342.0,84341.0,0.0398]
[1742622972115,0.6612474,84342.0,84341.0,0.0398]
[1742622972315,0.3004474,84342.0,84341.0,0.0398]
[1742622972914,0.6612474,84342.0,84341.0,0.0398]
[1742622974417,0.6943474,84342.0,84341.0,0.0398]
[1742622976409,0.3335474,84342.0,84341.0,0.0398]
[1742622976617,0.6943474,84342.0,84341.0,0.0398]
[1742622976919,0.6943474,84342.0,84341.0,0.007]
[1742622977818,0.3335474,84342.0,84341.0,0.007]
[1742622978019,0.6943474,84342.0,84341.0,0.007]
[1742622978219,0.3335474,84342.0,84341.0,0.007]
[1742622978415,0.6943474,84342.0,84341.0,0.007]
[1742622979513,0.3335474,84342.0,84341.0,0.007]
[1742622979715,0.6943474,84342.0,84341.0,0.007]
[1742622980322,0.3335474,84342.0,84341.0,0.007]
[1742622980522,0.6943474,84342.0,84341.0,0.007]
[1742622980722,0.3335474,84342.0,84341.0,0.007]
[1742622981018,0.6943474,84342.0,84341.0,0.007]
[1742622982425,0.6943474,84342.0,84341.0,0.0385]
[1742622983322,0.3335474,84342.0,84341.0,0.0385]
[1742622983522,0.6943474,84342.0,84341.0,0.0385]
[1742622985921,0.3335474,84342.0,84341.0,0.0385]
[1742622986220,0.6943474,84342.0,84341.0,0.0385]
[1742622986923,0.3335474,84342.0,84341.0,0.0385]
[1742622987127,0.6943474,84342.0,84341.0,0.0385]
[1742622987526,0.6612474,84342.0,84341.0,0.0385]
[1742622989524,0.3004474,84342.0,84341.0,0.0385]
[1742622989728,0.6612474,84342.0,84341.0,0.0385]
[1742622989931,0.3004474,84342.0,84341.0,0.0385]
[1742622990127,0.6612474,84342.0,84341.0,0.0385]
[1742622990927,0.3004474,84342.0,84341.0,0.0385]
[1742622991128,0.6612474,84342.0,84341.0,0.0385]
[1742622992929,0.3004474,84342.0,84341.0,0.0385]
[1742622993332,0.6612474,84342.0,84341.0,0.0385]
[1742622995528,0.3004474,84342.0,84341.0,0.0385]
[1742622995830,0.6612474,84342.0,84341.0,0.0385]
[1742622996433,0.3004474,84342.0,84341.0,0.0385]
[1742622996632,0.6612474,84342.0,84341.0,0.0385]
[1742623001325,0.3004474,84342.0,84341.0,0.0385]
[1742623001525,0.6612474,84342.0,84341.0,0.0385]
[1742623002837,0.3004474,84342.0,84341.0,0.0385]
[1742623003039,0.6612474,84342.0,84341.0,0.0385]
[1742623004539,0.3004474,84342.0,84341.0,0.0385]
[1742623005038,0.6612474,84342.0,84341.0,0.0385]
[1742623006632,0.3004474,84342.0,84341.0,0.0385]
[1742623006831,0.6612474,84342.0,84341.0,0.0385]
[1742623007526,0.6612474,84342.0,84341.0,0.069]
[1742623013945,0.3004474,84342.0,84341.0,0.069]
[1742623014247,0.6612474,84342.0,84341.0,0.069]
[1742623015345,0.3004474,84342.0,84341.0,0.069]
[1742623015544,0.6612474,84342.0,84341.0,0.069]
[1742623016243,0.3004474,84342.0,84341.0,0.069]
[1742623016550,0.6612474,84342.0,84341.0,0.069]
[1742623016938,0.3004474,84342.0,84341.0,0.069]
[1742623017347,0.6612474,84342.0,84341.0,0.069]
[1742623017533,0.3004474,84342.0,84341.0,0.069]
[1742623017845,0.6612474,84342.0,84341.0,0.069]
[1742623019143,0.3004474,84342.0,84341.0,0.069]
[1742623019348,0.6612474,84342.0,84341.0,0.069]
[1742623019652,0.6612474,84342.0,84341.0,0.0385]
[1742623022853,0.3004474,84342.0,84341.0,0.0385]
[1742623023154,0.6612474,84342.0,84341.0,0.0385]
[1742623024254,0.3004474,84342.0,84341.0,0.0385]
[1742623024456,0.6612474,84342.0,84341.0,0.0385]
[1742623026555,0.3004474,84342.0,84341.0,0.0385]
[1742623026757,0.6612474,84342.0,84341.0,0.0385]
[1742623030452,0.3004474,84342.0,84341.0,0.0385]
[1742623030651,0.6612474,84342.0,84341.0,0.0385]
[1742623031553,0.3004474,84342.0,84341.0,0.0385]
[1742623031752,0.6612474,84342.0,84341.0,0.0385]
[1742623036247,0.6612474,84342.0,84341.0,0.007]
[1742623042567,0.3004474,84342.0,84341.0,0.007]
[1742623042765,0.6612474,84342.0,84341.0,0.007]
[1742623043965,0.83837214,84342.0,84341.0,0.007]
[1742623045572,0.85201773,84342.0,84341.0,0.007]
[1742623045973,0.87825747,84342.0,84341.0,0.007]
[1742623046668,0.903128,84342.0,84341.0,0.007]
[1742623049375,0.87688826,84342.0,84341.0,0.007]
[1742623049977,0.85201773,84342.0,84341.0,0.007]
[1742623054267,0.49121773,84342.0,84341.0,0.007]
[1742623054977,0.85201773,84342.0,84341.0,0.007]
[1742623055678,0.83837214,84342.0,84341.0,0.007]
[1742623056580,0.47757214,84342.0,84341.0,0.007]
[1742623056980,0.83837214,84342.0,84341.0,0.007]
[1742623062582,0.49125811,84342.0,84341.0,0.007]
[1742623062782,0.85205811,84342.0,84341.0,0.007]
[1742623063685,0.49125811,84342.0,84341.0,0.007]
[1742623063982,0.85205811,84342.0,84341.0,0.007]
[1742623066176,0.83837214,84342.0,84341.0,0.007]
[1742623066783,0.47757214,84342.0,84341.0,0.007]
[1742623066984,0.83837214,84342.0,84341.0,0.007]
[1742623067277,0.50205287,84342.0,84341.0,0.007]
[1742623067474,0.83837214,84342.0,84341.0,0.007]
[1742623068872,0.83837214,84342.0,84341.0,0.0395]
[1742623070786,0.47757214,84342.0,84341.0,0.0395]
[1742623070977,0.83837214,84342.0,84341.0,0.0395]
[1742623071672,0.47757214,84342.0,84341.0,0.0395]
[1742623082689,0.47757214,84342.0,84341.0,0.007]
[1742623084583,0.47757214,84342.0,84341.0,0.0388]
[1742623092394,0.47757214,84342.0,84341.0,0.007]
[1742623100098,0.83837214,84342.0,84341.0,0.007]
[1742623103894,0.83837214,84342.0,84341.0,0.0398]
[1742623104095,0.83845214,84342.0,84341.0,0.0398]
[1742623106995,0.83845214,84342.0,84341.0,0.0725]
[1742623107601,0.83837214,84342.0,84341.0,0.0725]
[1742623107905,0.83845214,84342.0,84341.0,0.0725]
[1742623108505,0.83837214,84342.0,84341.0,0.0725]
[1742623109010,0.83845214,84342.0,84341.0,0.0725]
[1742623115907,0.2388274,84342.0,84341.0,0.18434]
[1742623116112,0.2388274,84342.0,84341.0,0.3029632]
[1742623116711,0.2387474,84342.0,84341.0,0.3029632]
[1742623116911,0.2388274,84342.0,84341.0,0.3029632]
[1742623117612,0.2387474,84342.0,84341.0,0.3029632]
[1742623117803,0.2388274,84342.0,84341.0,0.3029632]
[1742623122310,0.2388274,84342.0,84341.0,0.6637632]
[1742623122510,0.2387474,84342.0,84341.0,0.6637632]
[1742623122914,0.2696474,84342.0,84341.0,0.6637632]
[1742623123214,0.2697274,84342.0,84341.0,0.3029632]
[1742623123409,0.2697274,84342.0,84341.0,0.6637632]
[1742623123610,0.26816739,84342.0,84341.0,0.54514]
[1742623123816,0.30006739,84342.0,84341.0,0.54514]
[1742623124018,0.30006739,84342.0,84341.0,0.4333]
[1742623124317,0.3016274,84342.0,84341.0,0.54514]
[1742623124516,0.3016274,84342.0,84341.0,0.18434]
[1742623125118,0.3016274,84342.0,84341.0,0.3029632]
[1742623129018,0.18306181,84342.0,84341.0,0.3029632]
[1742623129219,0.1815018,84342.0,84341.0,0.3029632]
[1742623130720,0.18306181,84342.0,84341.0,0.6637632]
[1742623130922,0.1815018,84342.0,84341.0,0.3029632]
[1742623131123,0.18306181,84342.0,84341.0,0.6637232]
[1742623131423,0.1815018,84342.0,84341.0,0.6637232]
[1742623131619,0.1815018,84342.0,84341.0,0.3029232]
[1742623131921,0.18306181,84342.0,84341.0,0.6637232]
[1742623132223,0.1815018,84342.0,84341.0,0.6637232]
[1742623133518,0.1815018,84342.0,84341.0,0.3029232]
[1742623133724,0.18310181,84342.0,84341.0,0.6637232]
[1742623134023,0.1815018,84342.0,84341.0,0.6637232]
[1742623134610,0.1815018,84342.0,84341.0,0.3029232]
[1742623134817,0.18310181,84342.0,84341.0,0.6637232]
[1742623135024,0.1815018,84342.0,84341.0,0.6637232]
[1742623137425,0.1815018,84342.0,84341.0,0.3029232]
[1742623137726,0.18306181,84342.0,84341.0,0.6637232]
[1742623138018,0.1815018,84342.0,84341.0,0.6637232]
[1742623141327,0.1815018,84342.0,84341.0,0.6310232]
[1742623146325,0.1815018,84342.0,84341.0,0.2702232]
[1742623146524,0.18306181,84342.0,84341.0,0.6310232]
[1742623146724,0.1815018,84342.0,84341.0,0.6310232]
[1742623146925,0.1815018,84342.0,84341.0,0.2702232]
[1742623147227,0.18306181,84342.0,84341.0,0.6310232]
[1742623147436,0.1815018,84342.0,84341.0,0.6310232]
[1742623152744,0.1815018,84342.0,84341.0,0.2702232]
[1742623152930,0.1814218,84342.0,84341.0,0.6310232]
[1742623153535,0.1814218,84342.0,84341.0,0.6626232]
[1742623156238,0.1814218,84342.0,84341.0,0.3018232]
[1742623156440,0.1814218,84342.0,84341.0,0.6626232]
[1742623157240,0.1814218,84342.0,84341.0,0.3018232]
[1742623157441,0.1814218,84342.0,84341.0,0.6626232]
[1742623160443,0.1814218,84342.0,84341.0,0.3018232]
[1742623160631,0.1814218,84342.0,84341.0,0.6626232]
[1742623163245,0.1814218,84342.0,84341.0,0.3018232]
[1742623163436,0.1814218,84342.0,84341.0,0.6626232]
[1742623165137,0.1814218,84342.0,84341.0,0.3018232]
[1742623165543,0.1814218,84342.0,84341.0,0.6626232]
[1742623166241,0.1186197,84344.0,84343.0,0.1186204]
[1742623166644,0.1186197,84344.0,84343.0,0.1825204]
[1742623168437,0.1186197,84344.0,84343.0,0.5463204]
[1742623168840,0.1186197,84344.0,84343.0,0.6581204]
[1742623169046,0.1186197,84344.0,84343.0,0.6591204]
[1742623170345,0.1820197,84344.0,84343.0,0.6591204]
[1742623175256,0.0634,84344.0,84343.0,0.6591204]
[1742623175643,0.0634,84344.0,84343.0,0.9291204]
[1742623175853,0.06348,84344.0,84343.0,0.9291204]
[1742623178550,0.0303,84344.0,84343.0,0.9291204]
[1742623179463,0.03038,84344.0,84343.0,0.9291204]
[1742623179855,0.06298,84344.0,84343.0,0.9291204]
[1742623180755,0.06298,84344.0,84343.0,1.2899204]
[1742623181559,0.0629,84344.0,84343.0,1.2899204]
[1742623181956,0.06298,84344.0,84343.0,1.2899204]
[1742623185057,0.06298,84344.0,84343.0,0.5683204]
[1742623185257,0.06298,84344.0,84343.0,1.2899204]
[1742623186167,0.06298,84344.0,84343.0,0.5683204]
[1742623186367,0.06298,84344.0,84343.0,1.2899204]
[1742623187763,0.06298,84344.0,84343.0,0.5683204]
[1742623187959,0.06298,84344.0,84343.0,1.2899204]
[1742623189171,0.06298,84344.0,84343.0,0.5683204]
[1742623189374,0.06298,84344.0,84343.0,1.2899204]
[1742623194574,0.0629,84344.0,84343.0,1.2899204]
[1742623194768,0.06298,84344.0,84343.0,1.2899204]
[1742623200777,0.0629,84344.0,84343.0,1.2899204]
[1742623200977,0.06298,84344.0,84343.0,1.2899204]
[1742623201381,0.06298,84344.0,84343.0,1.2898804]
[1742623205077,0.06298,84344.0,84343.0,1.57437984]
[1742623207583,0.06298,84344.0,84343.0,1.2898804]
[1742623209385,0.06298,84344.0,84343.0,1.1142204]
[1742623209689,0.06298,84344.0,84343.0,0.9559804]
[1742623210390,0.181599,84344.0,84343.0,0.9559804]
[1742623210779,0.181599,84344.0,84343.0,0.9891804]
[1742623216387,0.181599,84344.0,84343.0,1.27385396]
[1742623218801,0.181599,84344.0,84343.0,0.9891804]
[1742623225413,0.181599,84344.0,84343.0,1.0191804]
[1742623226008,0.181599,84344.0,84343.0,0.9074204]
[1742623226205,0.181599,84344.0,84343.0,1.0191804]
[1742623228918,0.181599,84344.0,84343.0,1.8803804]
[1742623230611,0.181519,84344.0,84343.0,1.8803804]
[1742623238526,0.181519,84344.0,84343.0,2.16505396]
[1742623250536,0.181519,84344.0,84343.0,2.05329396]
[1742623250738,0.181519,84344.0,84343.0,2.16505396]
[1742623255438,0.181519,84344.0,84343.0,1.44345396]
[1742623255738,0.181519,84344.0,84343.0,2.16505396]
[1742623257934,0.181519,84344.0,84343.0,1.44345396]
[1742623258138,0.181519,84344.0,84343.0,2.16505396]
[1742623259330,0.181519,84344.0,84343.0,1.44345396]
[1742623259535,0.181519,84344.0,84343.0,2.16505396]
[1742623262349,0.0629,84344.0,84343.0,2.16505396]
[1742623262537,0.02959105,84344.0,84343.0,1.70345396]
[1742623262840,0.0592928,84368.0,84346.0,0.0593075]
[1742623263048,0.1186002,84361.0,84360.0,0.1778875]
[1742623263338,0.12016021,84361.0,84360.0,0.6504475]
[1742623263541,0.03426001,84361.0,84360.0,0.7097443]
[1742623263742,0.151295,84361.0,84360.0,0.7097443]
[1742623264444,0.153295,84361.0,84360.0,0.7097443]
[1742623264845,0.153295,84361.0,84360.0,0.9797443]
[1742623265240,0.153295,84361.0,84360.0,0.6189443]
[1742623265438,0.15485501,84361.0,84360.0,1.3405443]
[1742623265745,0.153295,84361.0,84360.0,1.3405443]
[1742623269148,0.153295,84361.0,84360.0,1.2287843]
[1742623269347,0.153295,84361.0,84360.0,1.3405443]
[1742623271343,0.153295,84361.0,84360.0,0.6189443]
[1742623271541,0.15489501,84361.0,84360.0,0.6189443]
[1742623271744,0.15489501,84361.0,84360.0,1.3405443]
[1742623271942,0.153295,84361.0,84360.0,1.3405443]
[1742623274755,0.153295,84361.0,84360.0,0.6189443]
[1742623274945,0.15489501,84361.0,84360.0,1.3405443]
[1742623275141,0.153295,84361.0,84360.0,1.3405443]
[1742623276753,0.153295,84361.0,84360.0,1.1626567]
[1742623277256,0.153295,84361.0,84360.0,2.0237367]
[1742623277441,0.153295,84361.0,84360.0,1.9119767]
[1742623277645,0.153295,84361.0,84360.0,2.0237367]
[1742623278555,0.185795,84361.0,84360.0,2.0887367]
[1742623282546,0.185795,84361.0,84360.0,1.3671367]
[1742623282746,0.185795,84361.0,84360.0,2.0887367]
[1742623287049,0.185795,84361.0,84360.0,1.3671367]
[1742623287253,0.185795,84361.0,84360.0,2.0887367]
[1742623288155,0.185795,84361.0,84360.0,1.3671367]
[1742623288362,0.185795,84361.0,84360.0,2.0887367]
[1742623289156,0.185795,84361.0,84360.0,1.3671367]
[1742623289550,0.185795,84361.0,84360.0,2.0887367]
[1742623290654,0.185795,84361.0,84360.0,1.3671367]
[1742623290856,0.185795,84361.0,84360.0,2.0887367]
[1742623293459,0.185795,84361.0,84360.0,1.3671367]
[1742623293651,0.185795,84361.0,84360.0,2.0887367]
[1742623295150,0.185795,84361.0,84360.0,1.3671367]
[1742623295346,0.185795,84361.0,84360.0,2.0887367]
[1742623299654,0.185795,84361.0,84360.0,2.37341026]
[1742623314781,0.0672,84361.0,84360.0,2.37341026]
[1742623316079,0.185795,84361.0,84360.0,2.37341026]
[1742623316761,0.185795,84361.0,84360.0,1.65181026]
[1742623316963,0.185795,84361.0,84360.0,2.37341026]
[1742623317369,0.0672,84361.0,84360.0,2.37341026]
[1742623318373,0.185795,84361.0,84360.0,2.37341026]
[1742623320479,0.0672,84361.0,84360.0,2.37341026]
[1742623321086,0.0672,84361.0,84360.0,1.65181026]
[1742623321383,0.0672,84361.0,84360.0,2.37341026]
[1742623321579,0.185795,84361.0,84360.0,2.37341026]
[1742623321878,0.185795,84361.0,84360.0,1.65181026]
[1742623322079,0.185795,84361.0,84360.0,2.37341026]
[1742623323974,0.0672,84361.0,84360.0,2.37341026]
[1742623325082,0.0672,84361.0,84360.0,2.38839941]
[1742623326183,0.0672,84361.0,84360.0,2.37341026]
[1742623327173,0.0672,84361.0,84360.0,2.0897367]
[1742623328586,0.0652,84361.0,84360.0,2.0897367]
[1742623328870,0.0652,84361.0,84360.0,2.0917367]
[1742623332687,0.0652,84361.0,84360.0,1.3701367]
[1742623332880,0.0652,84361.0,84360.0,2.0917367]
[1742623336382,0.0652,84361.0,84360.0,1.9799767]
[1742623336582,0.0652,84361.0,84360.0,2.0916967]
[1742623337182,0.0652,84361.0,84360.0,1.9799767]
[1742623337482,0.0652,84361.0,84360.0,2.0916967]
[1742623355387,0.1185768,84374.0,84373.0,0.0592888]
[1742623355598,0.12017681,84374.0,84373.0,0.1710088]
[1742623355794,0.12017681,84374.0,84373.0,0.8926088]
[1742623356200,0.12021681,84374.0,84373.0,0.8926088]
[1742623356495,0.1185768,84374.0,84373.0,0.8926088]
[1742623356800,0.1808652,84374.0,84373.0,0.89472]
[1742623357298,0.1808652,84374.0,84373.0,0.90375106]
[1742623357702,0.1788652,84374.0,84373.0,0.90375106]
[1742623358396,0.1788652,84374.0,84373.0,0.79203106]
[1742623358605,0.2752652,84374.0,84373.0,0.90375106]
[1742623358896,0.27582521,84374.0,84373.0,1.76475106]
[1742623359096,0.2416652,84374.0,84373.0,2.12332926]
[1742623359494,0.2416652,84374.0,84373.0,2.12532926]
[1742623359699,0.2416652,84374.0,84373.0,2.13978313]
[1742623364702,0.1230884,84374.0,84373.0,2.13978313]
[1742623367904,0.1230884,84374.0,84373.0,1.77898313]
[1742623372908,0.0638,84374.0,84373.0,1.77898313]
[1742623373312,0.1823768,84374.0,84373.0,1.77898313]
[1742623375310,0.1823768,84374.0,84373.0,1.99225874]
[1742623379910,0.1823768,84374.0,84373.0,1.77898313]
[1742623385419,0.0638,84374.0,84373.0,1.77898313]
[1742623386922,0.1823768,84374.0,84373.0,1.77898313]
[1742623388924,0.0638,84374.0,84373.0,1.77898313]
[1742623389112,0.0316,84374.0,84373.0,1.77898313]
[1742623389312,8e-05,84375.0,84374.0,0.1185768]
[1742623389624,8e-05,84375.0,84374.0,0.4410768]
[1742623390016,0.06158,84375.0,84374.0,0.4410768]
[1742623390321,0.1801554,84375.0,84374.0,0.4476368]
[1742623390518,0.06158,84375.0,84374.0,0.4476368]
[1742623390721,0.06158,84375.0,84374.0,0.46260109]
[1742623391222,0.06158,84375.0,84374.0,0.46460109]
[1742623391223,0.1801554,84375.0,84374.0,0.46460109]
[1742623391918,0.06158,84375.0,84374.0,0.46460109]
[1742623392224,0.06158,84375.0,84374.0,0.46660109]
[1742623392927,0.1801554,84375.0,84374.0,0.46660109]
[1742623393222,0.06158,84375.0,84374.0,0.46660109]
[1742623393620,8e-05,84375.0,84374.0,0.46660109]
[1742623394127,0.00017784,84382.0,84381.0,0.1185669]
[1742623394320,0.00017784,84382.0,84381.0,0.8510469]
[1742623394516,0.00017784,84382.0,84381.0,0.86601119]
[1742623395024,0.00017784,84382.0,84381.0,0.93110119]
[1742623395323,0.00017784,84382.0,84381.0,0.9161369]
[1742623397627,0.00017784,84382.0,84381.0,1.20054919]
[1742623398626,0.00017784,84382.0,84381.0,1.21988919]
[1742623400622,0.00017784,84382.0,84381.0,0.9354769]
[1742623401927,0.00017784,84382.0,84381.0,1.2962769]
[1742623402328,8e-05,84384.0,84383.0,0.1185641]
[1742623402530,0.118553,84391.0,84390.0,0.1185543]
[1742623402837,0.059265,84408.0,84390.0,0.1185543]
[1742623402838,0.0329,84396.0,84395.0,0.1185473]
[1742623403131,0.1185459,84396.0,84395.0,0.1185466]
[1742623403326,0.12018591,84396.0,84395.0,0.1185466]
[1742623403526,0.12018591,84396.0,84395.0,0.1819466]
[1742623403725,0.15308591,84396.0,84395.0,0.1819466]
[1742623404634,0.03454001,84396.0,84395.0,0.1819466]
[1742623404934,0.1514459,84396.0,84395.0,0.1819466]
[1742623405137,0.15300591,84396.0,84395.0,0.1819466]
[1742623405332,0.15300591,84396.0,84395.0,0.1825166]
[1742623405726,0.15700591,84396.0,84395.0,0.1825166]
[1742623405926,0.16000591,84396.0,84395.0,0.1825166]
[1742623406126,0.04146001,84396.0,84395.0,0.1825166]
[1742623406327,0.04146001,84396.0,84395.0,0.4525166]
[1742623406626,0.007,84396.0,84395.0,0.4525166]
[1742623407431,0.007,84396.0,84395.0,0.8133166]
[1742623407836,0.007,84396.0,84395.0,1.6740766]
[1742623410332,0.00017774,84404.0,84403.0,0.118536]
[1742623410636,0.00173775,84404.0,84403.0,0.591016]
[1742623410837,0.00017774,84404.0,84403.0,0.591016]
[1742623411032,0.00181775,84404.0,84403.0,0.597576]
[1742623411227,0.00017774,84404.0,84403.0,0.597576]
[1742623411432,0.12535235,84404.0,84403.0,0.598576]
[1742623412034,0.12135235,84404.0,84403.0,0.597576]
[1742623412838,0.12635235,84404.0,84403.0,0.598576]
[1742623413628,0.12135235,84404.0,84403.0,0.597576]
[1742623413833,0.12235235,84404.0,84403.0,0.597576]
[1742623414036,0.12239234,84404.0,84403.0,0.597576]
[1742623414236,8e-05,84418.0,84414.0,0.1185206]
[1742623414237,0.0317,84415.0,84414.0,0.1185206]
[1742623414442,0.1502192,84415.0,84414.0,0.5916006]
[1742623414939,0.15125921,84415.0,84414.0,0.6560006]
[1742623415135,0.0317,84415.0,84414.0,0.66759076]
[1742623415340,0.1502192,84415.0,84414.0,0.66759076]
[1742623415734,0.1502192,84415.0,84414.0,0.66859076]
[1742623416135,0.1532192,84415.0,84414.0,0.66859076]
[1742623417039,0.1502192,84415.0,84414.0,0.66959076]
[1742623418648,0.1502192,84415.0,84414.0,0.67297076]
[1742623420035,0.15125921,84415.0,84414.0,0.67357076]
[1742623420944,0.15125921,84415.0,84414.0,0.67353076]
[1742623422738,0.15125921,84415.0,84414.0,0.69286076]
[1742623425939,0.15125921,84415.0,84414.0,0.58122076]
[1742623426158,0.15125921,84415.0,84414.0,0.69286076]
[1742623428754,0.15125921,84415.0,84414.0,0.33206076]
[1742623428952,0.11955921,84415.0,84414.0,0.69286076]
[1742623429140,0.1185192,84415.0,84414.0,0.69286076]
[1742623429343,0.11955921,84415.0,84414.0,0.69286076]
[1742623429852,0.11955921,84415.0,84414.0,0.69343076]
[1742623430651,0.18315921,84415.0,84414.0,0.69343076]
[1742623430954,0.11955921,84415.0,84414.0,0.69343076]
[1742623431152,0.1185192,84415.0,84414.0,0.69343076]
[1742623432152,0.1195992,84415.0,84414.0,0.98343076]
[1742623432347,0.1185192,84415.0,84414.0,0.98343076]
[1742623433847,0.1777764,84417.0,84416.0,0.1185164]
[1742623434049,0.1777764,84417.0,84416.0,0.3691964]
[1742623434756,0.118595,84418.0,84417.0,0.1185164]
[1742623434953,0.11963501,84418.0,84417.0,0.3891564]
[1742623435549,0.11955501,84418.0,84417.0,0.3891564]
[1742623436249,0.00104001,84418.0,84417.0,0.3891564]
[1742623436448,0.1185941,84419.0,84418.0,0.177769]
[1742623436657,0.1185941,84419.0,84418.0,1.04795154]
[1742623436857,0.1185941,84419.0,84418.0,1.05450154]
[1742623438245,0.1195941,84419.0,84418.0,1.05450154]
[1742623438946,0.1823941,84419.0,84418.0,1.05450154]
[1742623439856,0.1823941,84419.0,84418.0,1.41530154]
[1742623440253,0.1823941,84419.0,84418.0,1.41868154]
[1742623444357,0.1823941,84419.0,84418.0,1.45078154]
[1742623446460,0.1823941,84419.0,84418.0,1.56242154]
[1742623449366,0.1195941,84419.0,84418.0,1.56242154]
[1742623450457,0.00108,84419.0,84418.0,1.72078154]
[1742623450766,0.00017774,84423.0,84422.0,0.1185094]
[1742623450966,0.00017774,84423.0,84422.0,0.1191094]
[1742623451173,0.00017774,84423.0,84422.0,0.1830094]
[1742623452469,0.11968574,84423.0,84422.0,0.1830094]
[1742623452663,0.11968574,84423.0,84422.0,0.2946494]
[1742623452864,0.00117774,84423.0,84422.0,0.2946494]
[1742623453169,0.00317774,84423.0,84422.0,0.2946494]
[1742623454968,0.12168574,84423.0,84422.0,0.2946494]
[1742623455471,0.12168574,84423.0,84422.0,1.0162494]
[1742623457368,0.15478574,84423.0,84422.0,1.0162494]
[1742623458666,0.15478574,84423.0,84422.0,0.9046094]
[1742623458864,0.15478574,84423.0,84422.0,1.0162494]
[1742623459366,0.15478574,84423.0,84422.0,1.0168094]
[1742623461873,0.12168574,84423.0,84422.0,1.0168094]